[Event "December 19 Early 2023"]
[Site "https://www.chess.com"]
[Date "2023.12.19"]
[Round "3"]
[White "Van Foreest, Machteld"]
[Black "Skvortsov, Andrei"]
[Result "0-1"]
[Board "92"]
[TimeControl "180+1"]
[WhiteFideId "1051563"]
[BlackFideId "24108600"]
[WhiteElo "2212"]
[BlackElo "2338"]
[WhiteTeam "NED"]
[BlackTeam "MNE"]
[WhiteClock "0:00:31"]
[BlackClock "0:01:08"]

1. e4 {[%clk 0:03:00]}  d5 {[%clk 0:02:59]} 2. exd5 {[%clk 0:02:57]}  Qxd5 {[%clk 0:03:00]} 3. Nc3 {[%clk 0:02:58]}  Qe5+ {[%clk 0:03:00]} 4. Be2 {[%clk 0:02:56]}  Bg4 {[%clk 0:03:00]} 5. d4 {[%clk 0:02:51]}  Bxe2 {[%clk 0:03:01]} 6. Ngxe2 {[%clk 0:02:49]}  Qa5 {[%clk 0:03:01]} 7. O-O {[%clk 0:02:40]}  Nf6 {[%clk 0:03:02]} 8. d5 {[%clk 0:02:18]}  c6 {[%clk 0:03:01]} 9. dxc6 {[%clk 0:02:15]}  Nxc6 {[%clk 0:03:00]} 10. Bf4 {[%clk 0:02:13]}  Rd8 {[%clk 0:03:00]} 11. Qe1 {[%clk 0:02:13]}  e6 {[%clk 0:02:58]} 12. Rd1 {[%clk 0:02:10]}  Rxd1 {[%clk 0:02:56]} 13. Qxd1 {[%clk 0:02:11]}  Be7 {[%clk 0:02:56]} 14. Bd6 {[%clk 0:02:03]}  O-O {[%clk 0:02:53]} 15. Bxe7 {[%clk 0:02:02]}  Nxe7 {[%clk 0:02:54]} 16. Qd6 {[%clk 0:02:02]}  Nc6 {[%clk 0:02:52]} 17. Nd4 {[%clk 0:01:56]}  Nxd4 {[%clk 0:02:48]} 18. Qxd4 {[%clk 0:01:56]}  Rd8 {[%clk 0:02:48]} 19. Qh4 {[%clk 0:01:51]}  h6 {[%clk 0:02:42]} 20. h3 {[%clk 0:01:50]}  Rd2 {[%clk 0:02:37]} 21. Qf4 {[%clk 0:01:46]}  Qd8 {[%clk 0:02:36]} 22. Qa4 {[%clk 0:01:39]}  a6 {[%clk 0:02:34]} 23. Qb3 {[%clk 0:01:39]}  b5 {[%clk 0:02:32]} 24. a4 {[%clk 0:01:39]}  b4 {[%clk 0:02:23]} 25. Qxb4 {[%clk 0:01:39]}  Rxc2 {[%clk 0:02:23]} 26. Rd1 {[%clk 0:01:38]}  Rd2 {[%clk 0:02:16]} 27. Rxd2 {[%clk 0:01:34]}  Qxd2 {[%clk 0:02:17]} 28. Qb8+ {[%clk 0:01:27]}  Kh7 {[%clk 0:02:17]} 29. Qa7 {[%clk 0:01:28]}  Qxb2 {[%clk 0:02:09]} 30. Qc7 {[%clk 0:01:16]}  Qc1+ {[%clk 0:01:54]} 31. Kh2 {[%clk 0:01:12]}  Ne4 {[%clk 0:01:48]} 32. Nd5 {[%clk 0:01:06]}  Qd2 {[%clk 0:01:34]} 33. Ne7 {[%clk 0:00:59]}  Qxf2 {[%clk 0:01:33]} 34. Qb8 {[%clk 0:00:53]}  Nf6 {[%clk 0:01:28]} 35. Qb1+ {[%clk 0:00:51]}  g6 {[%clk 0:01:27]} 36. Qb8 {[%clk 0:00:49]}  Qh4 {[%clk 0:01:18]} 37. Kg1 {[%clk 0:00:41]}  Qd4+ {[%clk 0:01:09]} 38. Kh2 {[%clk 0:00:41]}  Qxa4 {[%clk 0:01:08]} 39. Qf8 {[%clk 0:00:40]}  Qe8 {[%clk 0:01:08]} 40. Nxg6 {[%clk 0:00:30]}  Qxf8 {[%clk 0:01:07]} 41. Nxf8+ {[%clk 0:00:31]}  Kg7 {[%clk 0:01:08]} 0-1

[Event "December 19 Early 2023"]
[Site "https://www.chess.com"]
[Date "2023.12.19"]
[Round "3"]
[White "Czerw, Dawid"]
[Black "Javakhadze, Zurab"]
[Result "0-1"]
[Board "93"]
[TimeControl "180+1"]
[WhiteFideId "1145746"]
[BlackFideId "13603647"]
[WhiteElo "2144"]
[BlackElo "2374"]
[WhiteTeam "POL"]
[BlackTeam "GEO"]
[WhiteClock "0:00:00"]
[BlackClock "0:00:04"]

1. e4 {[%clk 0:03:00]}  g6 {[%clk 0:03:00]} 2. d4 {[%clk 0:03:00]}  Bg7 {[%clk 0:03:01]} 3. Nc3 {[%clk 0:03:00]}  d6 {[%clk 0:03:02]} 4. f4 {[%clk 0:03:00]}  Nf6 {[%clk 0:03:00]} 5. Nf3 {[%clk 0:03:00]}  c5 {[%clk 0:03:00]} 6. dxc5 {[%clk 0:02:58]}  Qa5 {[%clk 0:03:00]} 7. Qd4 {[%clk 0:02:55]}  Nc6 {[%clk 0:02:34]} 8. Bb5 {[%clk 0:02:26]}  O-O {[%clk 0:02:32]} 9. Bxc6 {[%clk 0:02:25]}  bxc6 {[%clk 0:02:30]} 10. Bd2 {[%clk 0:02:09]}  dxc5 {[%clk 0:02:23]} 11. Qf2 {[%clk 0:02:03]}  Ba6 {[%clk 0:02:20]} 12. e5 {[%clk 0:01:53]}  Ng4 {[%clk 0:02:05]} 13. Qh4 {[%clk 0:01:37]}  h5 {[%clk 0:02:02]} 14. h3 {[%clk 0:01:36]}  Nh6 {[%clk 0:02:01]} 15. g4 {[%clk 0:01:35]}  Qb4 {[%clk 0:01:39]} 16. Rb1 {[%clk 0:00:57]}  Rad8 {[%clk 0:01:24]} 17. gxh5 {[%clk 0:00:49]}  Nf5 {[%clk 0:01:18]} 18. Qg4 {[%clk 0:00:49]}  Rxd2 {[%clk 0:01:11]} 19. Kxd2 {[%clk 0:00:42]}  Rd8+ {[%clk 0:00:58]} 20. Kc1 {[%clk 0:00:31]}  Bh6 {[%clk 0:00:28]} 21. Ng5 {[%clk 0:00:27]}  Qd4 {[%clk 0:00:23]} 22. Ra1 {[%clk 0:00:14]}  Ne3 {[%clk 0:00:09]} 23. Rd1 {[%clk 0:00:02]}  Nxg4 {[%clk 0:00:04]} 24. Rxd4 {[%clk 0:00:01]}  cxd4 {[%clk 0:00:05]} 25. hxg4 {[%clk 0:00:01]}  dxc3 {[%clk 0:00:06]} 26. bxc3 {[%clk 0:00:01]}  f6 {[%clk 0:00:05]} 27. Ne6 {[%clk 0:00:01]}  Rb8 {[%clk 0:00:03]} 28. Rb1 {[%clk 0:00:01]}  Rxb1+ {[%clk 0:00:03]} 29. Kxb1 {[%clk 0:00:02]}  Kf7 {[%clk 0:00:02]} 30. f5 {[%clk 0:00:02]}  gxf5 {[%clk 0:00:02]} 31. gxf5 {[%clk 0:00:03]}  fxe5 {[%clk 0:00:03]} 32. Nc5 {[%clk 0:00:03]}  Bc8 {[%clk 0:00:03]} 33. Kb2 {[%clk 0:00:00]}  Bxf5 {[%clk 0:00:04]} 0-1

[Event "December 19 Early 2023"]
[Site "https://www.chess.com"]
[Date "2023.12.19"]
[Round "3"]
[White "Nilsen, Tobias Lang"]
[Black "Weetik, Vjacheslav"]
[Result "0-1"]
[Board "94"]
[TimeControl "180+1"]
[WhiteFideId "1521624"]
[BlackFideId "4153472"]
[WhiteElo "2221"]
[BlackElo "2469"]
[WhiteTeam "NOR"]
[BlackTeam "RUS"]
[WhiteClock "0:00:01"]
[BlackClock "0:00:11"]

1. e4 {[%clk 0:03:00]}  e5 {[%clk 0:02:59]} 2. Nf3 {[%clk 0:03:01]}  Nc6 {[%clk 0:02:59]} 3. Bc4 {[%clk 0:03:01]}  Nf6 {[%clk 0:02:59]} 4. d3 {[%clk 0:03:02]}  Bc5 {[%clk 0:03:00]} 5. c3 {[%clk 0:03:03]}  d6 {[%clk 0:03:00]} 6. O-O {[%clk 0:03:03]}  a6 {[%clk 0:03:01]} 7. a4 {[%clk 0:03:03]}  Ba7 {[%clk 0:03:00]} 8. Re1 {[%clk 0:03:02]}  h6 {[%clk 0:02:56]} 9. Nbd2 {[%clk 0:02:52]}  O-O {[%clk 0:02:55]} 10. h3 {[%clk 0:02:52]}  Ne7 {[%clk 0:02:55]} 11. Nf1 {[%clk 0:02:50]}  Ng6 {[%clk 0:02:56]} 12. Ng3 {[%clk 0:02:50]}  Re8 {[%clk 0:02:47]} 13. d4 {[%clk 0:02:48]}  Be6 {[%clk 0:02:21]} 14. Bd3 {[%clk 0:02:46]}  a5 {[%clk 0:02:06]} 15. Be3 {[%clk 0:02:42]}  c6 {[%clk 0:02:04]} 16. Nh2 {[%clk 0:02:24]}  d5 {[%clk 0:01:44]} 17. dxe5 {[%clk 0:02:13]}  Nxe5 {[%clk 0:01:36]} 18. Bxa7 {[%clk 0:02:03]}  Rxa7 {[%clk 0:01:36]} 19. Bf1 {[%clk 0:01:31]}  Ng6 {[%clk 0:01:19]} 20. e5 {[%clk 0:01:19]}  Nd7 {[%clk 0:01:18]} 21. f4 {[%clk 0:00:41]}  Nxf4 {[%clk 0:01:17]} 22. Qd4 {[%clk 0:00:40]}  Qb6 {[%clk 0:01:17]} 23. Nf3 {[%clk 0:00:36]}  Ng6 {[%clk 0:01:01]} 24. Bd3 {[%clk 0:00:31]}  Ne7 {[%clk 0:00:52]} 25. Kh2 {[%clk 0:00:27]}  Qxd4 {[%clk 0:00:49]} 26. cxd4 {[%clk 0:00:27]}  b6 {[%clk 0:00:40]} 27. Rac1 {[%clk 0:00:26]}  Rb8 {[%clk 0:00:35]} 28. Nh5 {[%clk 0:00:20]}  Nf8 {[%clk 0:00:19]} 29. Nf4 {[%clk 0:00:19]}  Bd7 {[%clk 0:00:20]} 30. g4 {[%clk 0:00:17]}  Ne6 {[%clk 0:00:21]} 31. Kg3 {[%clk 0:00:17]}  b5 {[%clk 0:00:20]} 32. axb5 {[%clk 0:00:17]}  cxb5 {[%clk 0:00:21]} 33. Rc2 {[%clk 0:00:10]}  a4 {[%clk 0:00:18]} 34. Ra1 {[%clk 0:00:07]}  b4 {[%clk 0:00:18]} 35. Nxe6 {[%clk 0:00:07]}  Bxe6 {[%clk 0:00:18]} 36. Nd2 {[%clk 0:00:07]}  g5 {[%clk 0:00:15]} 37. Nb1 {[%clk 0:00:03]}  Rb6 {[%clk 0:00:12]} 38. Nd2 {[%clk 0:00:03]}  Nc6 {[%clk 0:00:12]} 39. Nf3 {[%clk 0:00:03]}  a3 {[%clk 0:00:13]} 40. bxa3 {[%clk 0:00:03]}  Rxa3 {[%clk 0:00:13]} 41. Rxa3 {[%clk 0:00:02]}  bxa3 {[%clk 0:00:14]} 42. Ra2 {[%clk 0:00:02]}  Rb3 {[%clk 0:00:13]} 43. Bc2 {[%clk 0:00:01]}  Rc3 {[%clk 0:00:13]} 44. Kf2 {[%clk 0:00:01]}  Nb4 {[%clk 0:00:12]} 45. Rxa3 {[%clk 0:00:01]}  Rxa3 {[%clk 0:00:11]} 0-1

[Event "December 19 Early 2023"]
[Site "https://www.chess.com"]
[Date "2023.12.19"]
[Round "3"]
[White "Halkias, Stelios"]
[Black "Rakhimgaliyev, Yerlan"]
[Result "1-0"]
[Board "96"]
[TimeControl "180+1"]
[WhiteFideId "4201809"]
[BlackFideId "13705148"]
[WhiteElo "2462"]
[BlackElo "2261"]
[WhiteTeam "GRE"]
[BlackTeam "KAZ"]
[WhiteClock "0:00:09"]
[BlackClock "0:00:00"]

1. Nf3 {[%clk 0:03:00]}  Nf6 {[%clk 0:03:00]} 2. c4 {[%clk 0:03:00]}  g6 {[%clk 0:03:00]} 3. Nc3 {[%clk 0:03:01]}  Bg7 {[%clk 0:03:00]} 4. e4 {[%clk 0:03:01]}  d6 {[%clk 0:02:58]} 5. d4 {[%clk 0:03:01]}  O-O {[%clk 0:02:57]} 6. Be2 {[%clk 0:03:01]}  e5 {[%clk 0:02:55]} 7. Be3 {[%clk 0:03:01]}  Ng4 {[%clk 0:02:54]} 8. Bg5 {[%clk 0:03:01]}  f6 {[%clk 0:02:54]} 9. Bh4 {[%clk 0:03:02]}  Nc6 {[%clk 0:02:55]} 10. d5 {[%clk 0:03:01]}  Ne7 {[%clk 0:02:42]} 11. Nd2 {[%clk 0:03:01]}  Nh6 {[%clk 0:02:41]} 12. f3 {[%clk 0:03:01]}  g5 {[%clk 0:02:39]} 13. Bf2 {[%clk 0:03:01]}  f5 {[%clk 0:02:40]} 14. c5 {[%clk 0:03:00]}  Ng6 {[%clk 0:02:38]} 15. O-O {[%clk 0:03:00]}  Nf4 {[%clk 0:02:23]} 16. Nc4 {[%clk 0:03:00]}  g4 {[%clk 0:02:21]} 17. fxg4 {[%clk 0:02:59]}  Nxg4 {[%clk 0:02:18]} 18. Bxg4 {[%clk 0:02:59]}  fxg4 {[%clk 0:02:19]} 19. cxd6 {[%clk 0:02:50]}  cxd6 {[%clk 0:02:20]} 20. Nb5 {[%clk 0:02:50]}  Rf6 {[%clk 0:01:56]} 21. Nxa7 {[%clk 0:02:33]}  Rh6 {[%clk 0:01:43]} 22. Nxc8 {[%clk 0:02:26]}  Rxc8 {[%clk 0:01:44]} 23. Ne3 {[%clk 0:02:09]}  Qg5 {[%clk 0:01:31]} 24. Nf5 {[%clk 0:01:55]}  Rh5 {[%clk 0:01:07]} 25. Be3 {[%clk 0:01:45]}  Rf8 {[%clk 0:00:48]} 26. Qd2 {[%clk 0:01:15]}  Rxf5 {[%clk 0:00:30]} 27. exf5 {[%clk 0:01:14]}  Rxh2 {[%clk 0:00:31]} 28. Kxh2 {[%clk 0:00:49]}  Qh4+ {[%clk 0:00:30]} 29. Kg1 {[%clk 0:00:49]}  g3 {[%clk 0:00:30]} 30. Rxf4 {[%clk 0:00:49]}  exf4 {[%clk 0:00:27]} 31. Bb6 {[%clk 0:00:22]}  Qh2+ {[%clk 0:00:26]} 32. Kf1 {[%clk 0:00:22]}  f3 {[%clk 0:00:27]} 33. Bg1 {[%clk 0:00:22]}  Qh5 {[%clk 0:00:19]} 34. Qc2 {[%clk 0:00:19]}  f2 {[%clk 0:00:16]} 35. Qc8+ {[%clk 0:00:18]}  Bf8 {[%clk 0:00:11]} 36. Qe6+ {[%clk 0:00:18]}  Kg7 {[%clk 0:00:11]} 37. f6+ {[%clk 0:00:18]}  Kh8 {[%clk 0:00:11]} 38. Rc1 {[%clk 0:00:14]}  fxg1=Q+ {[%clk 0:00:08]} 39. Kxg1 {[%clk 0:00:14]}  Qh2+ {[%clk 0:00:09]} 40. Kf1 {[%clk 0:00:15]}  Qh1+ {[%clk 0:00:10]} 41. Ke2 {[%clk 0:00:16]}  Qxc1 {[%clk 0:00:11]} 42. Qf7 {[%clk 0:00:16]}  Qxb2+ {[%clk 0:00:08]} 43. Kf3 {[%clk 0:00:16]}  Qc3+ {[%clk 0:00:05]} 44. Kg4 {[%clk 0:00:15]}  Qc4+ {[%clk 0:00:03]} 45. Kh3 {[%clk 0:00:14]}  Qc8+ {[%clk 0:00:03]} 46. Kxg3 {[%clk 0:00:14]}  Bh6 {[%clk 0:00:02]} 47. Kh4 {[%clk 0:00:10]}  Qg8 {[%clk 0:00:02]} 48. Qe6 {[%clk 0:00:09]}  Qg5+ {[%clk 0:00:00]} 49. Kh3 {[%clk 0:00:09]} 1-0

[Event "December 19 Early 2023"]
[Site "https://www.chess.com"]
[Date "2023.12.19"]
[Round "3"]
[White "Onyshchuk, Volodymyr"]
[Black "Dmitrenko, Viktor"]
[Result "1-0"]
[Board "97"]
[TimeControl "180+1"]
[WhiteFideId "14114038"]
[BlackFideId "14110270"]
[WhiteElo "2643"]
[BlackElo "2292"]
[WhiteTeam "UKR"]
[BlackTeam "UKR"]
[WhiteClock "0:00:49"]
[BlackClock "0:00:02"]

1. e4 {[%clk 0:03:00]}  c5 {[%clk 0:02:59]} 2. Nf3 {[%clk 0:03:00]}  e6 {[%clk 0:02:59]} 3. b3 {[%clk 0:03:00]}  Nc6 {[%clk 0:02:56]} 4. Bb2 {[%clk 0:03:00]}  d5 {[%clk 0:02:36]} 5. exd5 {[%clk 0:02:58]}  exd5 {[%clk 0:02:37]} 6. Bb5 {[%clk 0:02:55]}  Nf6 {[%clk 0:02:34]} 7. O-O {[%clk 0:02:50]}  Be7 {[%clk 0:02:33]} 8. Ne5 {[%clk 0:02:50]}  Bd7 {[%clk 0:01:58]} 9. Nxd7 {[%clk 0:02:26]}  Qxd7 {[%clk 0:01:58]} 10. d4 {[%clk 0:02:23]}  cxd4 {[%clk 0:01:47]} 11. Bxd4 {[%clk 0:02:14]}  O-O {[%clk 0:01:47]} 12. Bb2 {[%clk 0:02:13]}  a6 {[%clk 0:01:40]} 13. Bd3 {[%clk 0:02:10]}  Rfe8 {[%clk 0:01:35]} 14. Nd2 {[%clk 0:02:07]}  Rad8 {[%clk 0:01:30]} 15. Nf3 {[%clk 0:02:07]}  Ne4 {[%clk 0:01:27]} 16. Re1 {[%clk 0:02:06]}  Bf6 {[%clk 0:01:23]} 17. Bxf6 {[%clk 0:02:03]}  Nxf6 {[%clk 0:01:23]} 18. Rxe8+ {[%clk 0:01:55]}  Rxe8 {[%clk 0:01:24]} 19. Qd2 {[%clk 0:01:55]}  Ne5 {[%clk 0:01:10]} 20. Nxe5 {[%clk 0:01:52]}  Rxe5 {[%clk 0:01:11]} 21. Re1 {[%clk 0:01:49]}  Qe6 {[%clk 0:01:07]} 22. Rxe5 {[%clk 0:01:43]}  Qxe5 {[%clk 0:01:07]} 23. g3 {[%clk 0:01:43]}  g6 {[%clk 0:01:04]} 24. a4 {[%clk 0:01:41]}  Ne4 {[%clk 0:01:00]} 25. Qb4 {[%clk 0:01:40]}  Nd6 {[%clk 0:00:42]} 26. Qb6 {[%clk 0:01:34]}  Kg7 {[%clk 0:00:40]} 27. Kg2 {[%clk 0:01:23]}  Qf6 {[%clk 0:00:33]} 28. a5 {[%clk 0:01:19]}  Ne4 {[%clk 0:00:14]} 29. Qe3 {[%clk 0:01:15]}  Qc3 {[%clk 0:00:14]} 30. Qb6 {[%clk 0:01:00]}  Qc6 {[%clk 0:00:10]} 31. Qxc6 {[%clk 0:00:59]}  bxc6 {[%clk 0:00:10]} 32. Bxa6 {[%clk 0:01:00]}  Nd6 {[%clk 0:00:03]} 33. Bb7 {[%clk 0:00:57]}  c5 {[%clk 0:00:02]} 34. Bxd5 {[%clk 0:00:56]}  Kf6 {[%clk 0:00:03]} 35. a6 {[%clk 0:00:54]}  Nc8 {[%clk 0:00:03]} 36. f4 {[%clk 0:00:54]}  Ke7 {[%clk 0:00:03]} 37. Kf3 {[%clk 0:00:52]}  f6 {[%clk 0:00:04]} 38. h4 {[%clk 0:00:50]}  Kd6 {[%clk 0:00:04]} 39. Bg8 {[%clk 0:00:49]}  h6 {[%clk 0:00:05]} 40. Bf7 {[%clk 0:00:49]}  g5 {[%clk 0:00:05]} 41. Kg4 {[%clk 0:00:50]}  gxf4 {[%clk 0:00:02]} 42. gxf4 {[%clk 0:00:49]} 1-0

[Event "December 19 Early 2023"]
[Site "https://www.chess.com"]
[Date "2023.12.19"]
[Round "3"]
[White "Mazurkiewicz, Michal"]
[Black "Harshavardhan G B"]
[Result "0-1"]
[Board "98"]
[TimeControl "180+1"]
[WhiteFideId "1124943"]
[BlackFideId "25059009"]
[WhiteElo "2103"]
[BlackElo "2290"]
[WhiteTeam "POL"]
[BlackTeam "IND"]
[WhiteClock "0:00:00"]
[BlackClock "0:00:18"]

1. e4 {[%clk 0:03:00]}  e5 {[%clk 0:02:57]} 2. Nf3 {[%clk 0:03:00]}  Nc6 {[%clk 0:02:57]} 3. Bb5 {[%clk 0:03:00]}  a6 {[%clk 0:02:56]} 4. Bxc6 {[%clk 0:03:01]}  dxc6 {[%clk 0:02:57]} 5. O-O {[%clk 0:03:01]}  Bd6 {[%clk 0:02:56]} 6. d4 {[%clk 0:03:01]}  exd4 {[%clk 0:02:57]} 7. Qxd4 {[%clk 0:03:02]}  f6 {[%clk 0:02:57]} 8. e5 {[%clk 0:03:02]}  fxe5 {[%clk 0:02:56]} 9. Nxe5 {[%clk 0:03:03]}  Ne7 {[%clk 0:02:57]} 10. Nc3 {[%clk 0:02:46]}  Be6 {[%clk 0:02:54]} 11. Ne4 {[%clk 0:02:37]}  Nf5 {[%clk 0:02:31]} 12. Qc3 {[%clk 0:02:33]}  O-O {[%clk 0:02:29]} 13. Bg5 {[%clk 0:02:19]}  Qe8 {[%clk 0:02:23]} 14. Rfe1 {[%clk 0:02:11]}  Bd5 {[%clk 0:02:11]} 15. Bf4 {[%clk 0:00:54]}  Nh4 {[%clk 0:01:31]} 16. Bg3 {[%clk 0:00:46]}  Bxe5 {[%clk 0:01:23]} 17. Qxe5 {[%clk 0:00:39]}  Qxe5 {[%clk 0:01:21]} 18. Bxe5 {[%clk 0:00:40]}  Rae8 {[%clk 0:01:17]} 19. f4 {[%clk 0:00:35]}  Ng6 {[%clk 0:01:12]} 20. Nc3 {[%clk 0:00:30]}  Nxe5 {[%clk 0:01:02]} 21. Rxe5 {[%clk 0:00:16]}  Rxe5 {[%clk 0:01:00]} 22. fxe5 {[%clk 0:00:17]}  Re8 {[%clk 0:01:00]} 23. Re1 {[%clk 0:00:16]}  Kf7 {[%clk 0:01:00]} 24. Kf2 {[%clk 0:00:17]}  Ke6 {[%clk 0:01:00]} 25. Kg3 {[%clk 0:00:17]}  Rf8 {[%clk 0:00:59]} 26. Ne2 {[%clk 0:00:16]}  g5 {[%clk 0:00:55]} 27. Nd4+ {[%clk 0:00:16]}  Ke7 {[%clk 0:00:55]} 28. b3 {[%clk 0:00:15]}  c5 {[%clk 0:00:51]} 29. Nf3 {[%clk 0:00:13]}  Bxf3 {[%clk 0:00:50]} 30. gxf3 {[%clk 0:00:14]}  Ke6 {[%clk 0:00:51]} 31. Kg4 {[%clk 0:00:14]}  h6 {[%clk 0:00:50]} 32. Re4 {[%clk 0:00:14]}  Rd8 {[%clk 0:00:48]} 33. h4 {[%clk 0:00:14]}  gxh4 {[%clk 0:00:40]} 34. f4 {[%clk 0:00:14]}  Rg8+ {[%clk 0:00:40]} 35. Kxh4 {[%clk 0:00:14]}  Kf5 {[%clk 0:00:40]} 36. Re1 {[%clk 0:00:12]}  Rg6 {[%clk 0:00:33]} 37. Kh5 {[%clk 0:00:09]}  Re6 {[%clk 0:00:32]} 38. Rf1 {[%clk 0:00:07]}  b5 {[%clk 0:00:31]} 39. c4 {[%clk 0:00:06]}  bxc4 {[%clk 0:00:28]} 40. bxc4 {[%clk 0:00:07]}  a5 {[%clk 0:00:28]} 41. Kh4 {[%clk 0:00:07]}  Rb6 {[%clk 0:00:26]} 42. Kh5 {[%clk 0:00:04]}  Rb2 {[%clk 0:00:24]} 43. Kxh6 {[%clk 0:00:05]}  Rxa2 {[%clk 0:00:23]} 44. Kg7 {[%clk 0:00:05]}  Re2 {[%clk 0:00:20]} 45. Kf7 {[%clk 0:00:05]}  Re4 {[%clk 0:00:20]} 46. Rh1 {[%clk 0:00:04]}  a4 {[%clk 0:00:19]} 47. e6 {[%clk 0:00:04]}  Rxe6 {[%clk 0:00:17]} 48. Rh5+ {[%clk 0:00:04]}  Kg4 {[%clk 0:00:18]} 49. Rg5+ {[%clk 0:00:05]}  Kxf4 {[%clk 0:00:18]} 50. Rxc5 {[%clk 0:00:05]}  Ra6 {[%clk 0:00:17]} 51. Rxc7 {[%clk 0:00:04]}  a3 {[%clk 0:00:17]} 52. Rd7 {[%clk 0:00:02]}  a2 {[%clk 0:00:18]} 53. Rd1 {[%clk 0:00:00]}  a1=Q {[%clk 0:00:18]} 0-1

[Event "December 19 Early 2023"]
[Site "https://www.chess.com"]
[Date "2023.12.19"]
[Round "3"]
[White "Krysa, Leandro"]
[Black "Mohammadi, Melika"]
[Result "1-0"]
[Board "101"]
[TimeControl "180+1"]
[WhiteFideId "116807"]
[BlackFideId "42529271"]
[WhiteElo "2495"]
[BlackElo "1901"]
[WhiteTeam "ARG"]
[BlackTeam "IRI"]
[WhiteClock "0:02:37"]
[BlackClock "0:01:44"]

1. e4 {[%clk 0:03:00]}  e5 {[%clk 0:02:57]} 2. Nf3 {[%clk 0:03:00]}  Nc6 {[%clk 0:02:57]} 3. Bc4 {[%clk 0:03:00]}  Nf6 {[%clk 0:02:57]} 4. d3 {[%clk 0:03:00]}  Be7 {[%clk 0:02:57]} 5. O-O {[%clk 0:02:58]}  O-O {[%clk 0:02:57]} 6. a4 {[%clk 0:02:55]}  d6 {[%clk 0:02:49]} 7. h3 {[%clk 0:02:47]}  Na5 {[%clk 0:02:47]} 8. Ba2 {[%clk 0:02:46]}  c5 {[%clk 0:02:47]} 9. Nc3 {[%clk 0:02:46]}  Nc6 {[%clk 0:02:41]} 10. Bg5 {[%clk 0:02:42]}  Be6 {[%clk 0:02:37]} 11. Bxf6 {[%clk 0:02:38]}  Bxf6 {[%clk 0:02:35]} 12. Nd5 {[%clk 0:02:39]}  g6 {[%clk 0:02:14]} 13. c3 {[%clk 0:02:38]}  Qe7 {[%clk 0:01:44]} 14. Nxe7+ {[%clk 0:02:37]} 1-0

[Event "December 19 Early 2023"]
[Site "https://www.chess.com"]
[Date "2023.12.19"]
[Round "3"]
[White "Bagrationi, Alexander"]
[Black "Haring, Filip"]
[Result "0-1"]
[Board "102"]
[TimeControl "180+1"]
[WhiteFideId "14104954"]
[BlackFideId "14933080"]
[WhiteElo "2366"]
[BlackElo "2375"]
[WhiteTeam "ISR"]
[BlackTeam "SVK"]
[WhiteClock "0:00:34"]
[BlackClock "0:01:44"]

1. d4 {[%clk 0:02:49]}  e6 {[%clk 0:03:00]} 2. e4 {[%clk 0:02:43]}  d5 {[%clk 0:03:00]} 3. exd5 {[%clk 0:02:43]}  exd5 {[%clk 0:03:00]} 4. Bd3 {[%clk 0:02:44]}  Nf6 {[%clk 0:03:01]} 5. h3 {[%clk 0:02:43]}  c5 {[%clk 0:03:00]} 6. dxc5 {[%clk 0:02:43]}  Bxc5 {[%clk 0:03:01]} 7. Nf3 {[%clk 0:02:44]}  O-O {[%clk 0:03:01]} 8. O-O {[%clk 0:02:44]}  Nc6 {[%clk 0:03:01]} 9. Bg5 {[%clk 0:02:38]}  h6 {[%clk 0:03:01]} 10. Bh4 {[%clk 0:02:36]}  g5 {[%clk 0:03:01]} 11. Bg3 {[%clk 0:02:36]}  Ne4 {[%clk 0:02:35]} 12. Kh2 {[%clk 0:02:27]}  f5 {[%clk 0:02:20]} 13. c4 {[%clk 0:01:39]}  f4 {[%clk 0:01:59]} 14. cxd5 {[%clk 0:01:23]}  fxg3+ {[%clk 0:01:59]} 15. fxg3 {[%clk 0:01:22]}  Nxg3 {[%clk 0:01:43]} 16. Re1 {[%clk 0:00:47]}  Qd6 {[%clk 0:01:43]} 17. dxc6 {[%clk 0:00:38]}  Nf1+ {[%clk 0:01:43]} 18. Kh1 {[%clk 0:00:37]}  Qh2+ {[%clk 0:01:44]} 19. Nxh2 {[%clk 0:00:34]}  Ng3# {[%clk 0:01:44]} 0-1